Cogmind - Beta 14 @@@ ROGUE MODE // 2024.09.03 @ 09:30:10 Player: MOPO3 Result: Self-destructed Performance ------------- Evolutions (2) 1000 Regions Visited (7) 1400 Robots Destroyed (71) 355 Value Destroyed (1533) 1533 Prototype IDs (2) 40 Alien Tech Used (0) 0 Bonus (363) 363 TOTAL SCORE: 4691 Bonus ------- Follower Combat Kills 63 Aligned with FarCom 300 Cogmind --------- Core Integrity 473/550 Matter 8/300 Energy 100/100 System Corruption 0% Temperature Cool (0) Movement Core (50) Location -8/Materials Parts ------- > --- POWER (1) -------- (None) > --- PROPULSION (5) --- (None) > --- UTILITY (3) ------ (None) > --- WEAPON (2) ------- (None) > --- INVENTORY (5) ---- Nuclear Core Flight Unit Flight Unit Structural Scanner Cloak of Protection Peak State ------------ > --- POWER ------------ Light Ion Engine > --- PROPULSION ------- Aluminum Leg Improved Aluminum Leg Carbon-fiber Leg > --- UTILITY ---------- High-capacity Storage Unit Hacking Suite Supersonic Drone Bay > --- WEAPON ----------- Rocket Launcher Rocket Launcher > --- INVENTORY -------- Light Deuterium Engine Light Nuclear Core Flight Unit Flight Unit Flight Unit Flight Unit Flight Unit Flight Unit Flight Unit Flight Unit Improved Heat Sink Weight Redist. System Structural Scanner Signal Interpreter Light Armor Plating Medium Armor Plating Hacking Suite Rocket Launcher Rocket Launcher Hammer [Rating: 26] Favorites ----------- Power Ion Engine Engine Ion Engine Propulsion Aluminum Leg Treads Light Treads Leg Aluminum Leg Flight Unit Flight Unit Utility High-capacity Storage Unit Device Heat Sink Storage High-capacity Storage Unit Hackware Hacking Suite Protection Hardened Light Armor Plating Weapon Rocket Launcher Energy Gun Small Laser Energy Cannon Beam Cannon Ballistic Gun Assault Rifle Launcher Rocket Launcher Impact Weapon Hammer Build | -11 -10 -10 -9 -9 -9 -8 -8 ------- Run | Yrd Mat Min Mat Min Exi Min Mat Slots Evolved 4 | . . . 2 . . . 2 Power . | . . . . . . . . Propulsion 3 | . . . 1 . . . 2 Utility 1 | . . . 1 . . . . Weapon . | . . . . . . . . Parts Attached 42 | 7 9 3 9 5 2 1 6 Power 4 | 1 1 . 1 1 . . . Engine 4 | 1 1 . 1 1 . . . Core . | . . . . . . . . Reactor . | . . . . . . . . Propulsion 13 | 2 2 . 3 3 . . 3 Treads 2 | 2 . . . . . . . Leg 8 | . 2 . 3 3 . . . Wheel . | . . . . . . . . Hover . | . . . . . . . . Flight 3 | . . . . . . . 3 Utility 13 | 1 4 1 2 . 2 1 2 Device 3 | . 1 . . . 2 . . Storage 3 | 1 2 . . . . . . Processor . | . . . . . . . . Hackware 1 | . . . 1 . . . . Protection 6 | . 1 1 1 . . 1 2 Artifact . | . . . . . . . . Weapon 12 | 3 2 2 3 1 . . 1 Energy Gun 2 | 2 . . . . . . . Energy Cannon 2 | . 1 . 1 . . . . Ballistic Gun 2 | 1 1 . . . . . . Ballistic Cannon . | . . . . . . . . Launcher 5 | . . 1 2 1 . . 1 Special Weapon . | . . . . . . . . Impact Weapon 1 | . . 1 . . . . . Slashing Weapon . | . . . . . . . . Piercing Weapon . | . . . . . . . . Special Melee Weapon . | . . . . . . . . Unidentified Prototypes 2 | . . . . . 2 . . Parts Lost 7 | . 2 . 3 . . . 2 Power 1 | . . . 1 . . . . Propulsion 3 | . 1 . 1 . . . 1 Utility 2 | . 1 . 1 . . . . Weapon 1 | . . . . . . . 1 Highest Loss Streak 2 | . 1 . 2 . . . 2 To Critical Strikes . | . . . . . . . . Average Slot Usage (%) 98 | . 98 100 86 100 99 100 84 Engine 12 | . 13 14 8 11 11 11 8 Treads 4 | . 23 . . . . . . Leg 25 | . 4 28 29 33 33 33 25 Device 4 | . 5 7 . . 4 . . Storage 12 | . 14 14 11 11 11 11 8 Hackware 4 | . . . 6 11 11 11 8 Protection 8 | . 6 6 9 11 5 10 8 Energy Cannon 2 | . 10 . 3 2 . . . Ballistic Gun 2 | . 13 . . . . . . Launcher 13 | . . 13 9 19 22 22 17 Impact Weapon 5 | . . 13 9 . . . . Peak Build Rating 26 | 6 8 13 21 22 26 26 22 Average Rating 14 | 5 7 10 17 20 22 19 20 On Entrance 14 | . 6 8 13 21 20 26 19 Naked Turns 2 | . . . . . . . 2 Heaviest Build 62 | 13 51 54 62 62 59 59 54 Greatest Support 40 | 40 40 20 40 38 38 38 38 Greatest Overweight (x) 2 | . 2 2 2 1 1 1 2 Average Overweight (x) 1 | . . 2 1 1 1 1 1 Largest Inventory Capacity 20 | 8 20 20 20 20 20 20 20 Average Capacity 18 | 7 12 20 20 20 20 20 19 Most Carried 20 | 5 11 20 20 20 20 20 20 Average Carried 15 | 3 8 14 19 19 20 20 19 Final Capacity 20 | 8 20 20 20 20 20 20 5 Final Carried 20 | 5 11 20 20 20 20 20 5 Class Distribution -------------------- 63% | Mutant 36% | Scavenger-Mutant Dominant Class ---------------- Mutant | -10/Materials Mutant | -10/Mines Mutant | -9/Materials Scavenger-Mutant | -9/Mines Scavenger-Mutant | -9/Exiles Scavenger-Mutant | -8/Mines Scavenger-Mutant | -8/Materials Resources | -11 -10 -10 -9 -9 -9 -8 -8 ----------- Run | Yrd Mat Min Mat Min Exi Min Mat Matter Collected 1216 | 189 323 135 313 138 . 118 . Remotely . | . . . . . . . . Salvage Created 1662 | 17 745 55 387 99 . 190 169 Parts 120 | 3 33 2 37 16 . 18 11 Haulers Intercepted 1 | . 1 . . . . . . Recyclers Shooed 2 | . 1 . . . . . 1 Parts Field Recycled . | . . . . . . . . Retrieved Matter . | . . . . . . . . Parts Self-Destructed . | . . . . . . . . Prevented . | . . . . . . . . Kills | -11 -10 -10 -9 -9 -9 -8 -8 ------- Run | Yrd Mat Min Mat Min Exi Min Mat Combat Hostiles Destroyed 49 | . 11 3 12 9 . 5 9 Melee 1 | . . . 1 . . . . Guns 3 | . 3 . . . . . . Cannons 9 | . 8 . 1 . . . . AOE 35 | . . 2 10 9 . 5 9 Classes Destroyed 13 | 1 5 1 5 1 . . . Worker 8 | . 2 . 4 . . 2 . Builder 2 | . . . 1 1 . . . Tunneler 3 | 1 . 1 . . . 1 . Hauler 1 | . 1 . . . . . . Recycler 5 | . 2 . 1 . . 1 1 Operator 3 | . 2 . 1 . . . . Watcher 1 | . . . 1 . . . . Swarmer 18 | . . . 6 6 . 2 4 Grunt 21 | . 11 2 2 2 . 2 2 Brawler 1 | . . . 1 . . . . Duelist 2 | . . . . 1 . 1 . Sentry 6 | . . . 3 . . . 3 Assembled 1 | . . 1 . . . . . Best Kill Streak 13 | 1 6 2 13 4 . 7 8 Combat Bots Only 8 | . 2 2 8 4 . 3 7 Max Kills in Single Turn 4 | 1 1 2 3 2 . 4 4 Gunslinging . | . . . . . . . . Exploded 3 | . . 1 2 2 . 2 3 Melee 1 | . . . 1 . . . . Uniques/NPCs Destroyed . | . . . . . . . . Combat | -11 -10 -10 -9 -9 -9 -8 -8 -------- Run | Yrd Mat Min Mat Min Exi Min Mat Hostile Shots Fired 163 | . 51 4 65 8 . 4 31 Missed 41 | . 12 . 17 1 . 1 10 Damage Taken 1701 | . 471 62 632 114 . 86 336 Core 237 | . 44 16 93 7 . . 77 Absorbed by Shields . | . . . . . . . . Regen/Repaired (Parts) 102 | . 102 . . . . . . Core Remaining (%) 83 | 100 . 76 . . . 75 . Volleys Fired 105 | 2 52 4 25 7 . 4 11 Largest 2 | 2 2 1 2 2 . 2 2 Hottest 93 | 60 80 33 93 66 . 66 66 Shots Fired 177 | 4 105 4 26 8 . 8 22 Gun 67 | 4 63 . . . . . . Cannon 46 | . 42 . 4 . . . . Launcher 64 | . . 4 22 8 . 8 22 Special . | . . . . . . . . Kinetic 54 | 2 52 . . . . . . Thermal 59 | 2 53 . 4 . . . . Explosive 64 | . . 4 22 8 . 8 22 Electromagnetic . | . . . . . . . . Robot Hit Streak 12 | 1 12 4 6 3 . 2 5 Robot Miss Streak 6 | 2 3 . 6 1 . . 2 Penetration Max . | . . . . . . . . Secondary Targets . | . . . . . . . . Shots Hit Robots 110 | 1 63 5 25 4 . 2 10 Core Hits 108 | 2 26 4 27 13 . 14 22 Critical Kills . | . . . . . . . . Critical Parts Destroyed 2 | . . 1 1 . . . . Critical Strikes 2 | . . 1 1 . . . . Smash 2 | . . 1 1 . . . . Melee Attacks 18 | . . 3 15 . . . . Impact 18 | . . 3 15 . . . . Slashing . | . . . . . . . . Piercing . | . . . . . . . . Sneak Attacks 5 | . . 1 4 . . . . Combat Hostiles . | . . . . . . . . Follow-up Attacks . | . . . . . . . . Damage Inflicted 5016 | 34 936 313 1464 683 . 516 1070 Guns 440 | 34 406 . . . . . . Cannons 595 | . 527 . 68 . . . . Explosions 3561 | . . 238 1054 683 . 516 1070 Melee 400 | . . 75 325 . . . . Ramming 20 | . 3 . 17 . . . . Kinetic 351 | 13 338 . . . . . . Thermal 684 | 21 595 . 68 . . . . Explosive 3561 | . . 238 1054 683 . 516 1070 Electromagnetic . | . . . . . . . . Impact 400 | . . 75 325 . . . . Slashing . | . . . . . . . . Piercing . | . . . . . . . . Highest Corruption 1 | . 1 1 . . . . . Average Corruption 1 | . 1 1 . . . . . Corruption Purged . | . . . . . . . . Corruption Blocked . | . . . . . . . . Effects 27 | . 7 20 . . . . . Message Errors 5 | . 1 4 . . . . . Matter Fused 7 | . 1 6 . . . . . Heat Flow Errors 6 | . 2 4 . . . . . Energy Discharges 6 | . 1 5 . . . . . Data Loss (minor) 1 | . . 1 . . . . . Data Loss (major) 1 | . 1 . . . . . . Misfires 1 | . 1 . . . . . . Overload Shots . | . . . . . . . . Overflow Damage 192 | . . 35 57 50 . 22 28 Projectiles . | . . . . . . . . Explosions 103 | . . . 3 50 . 22 28 Melee 89 | . . 35 54 . . . . Knockbacks 1 | . . . 1 . . . . Impact 1 | . . . 1 . . . . Kinetic . | . . . . . . . . Secondary . | . . . . . . . . Self-Inflicted Damage 129 | . . . 28 48 . 36 17 Shots 5 | . . . 2 1 . 1 1 Rammed 1 | . 1 . . . . . . Targets Rammed 2 | . 1 . 1 . . . . Kicked 1 | . . . 1 . . . . Crushed . | . . . . . . . . Highest Temperature 315 | . 315 110 42 15 . 27 23 Average Temperature 49 | . 67 54 12 10 . 11 12 Received Heat Transfer 681 | . 285 36 225 18 . 18 99 Siege Activations . | . . . . . . . . Robots Corrupted 2 | . . 1 1 . . . . Combat Hostiles 1 | . . 1 . . . . . Parts Fried 3 | . . 1 2 . . . . Impact Corruptions 6 | . . 2 4 . . . . Robots Melted . | . . . . . . . . Combat Hostiles . | . . . . . . . . Parts Melted 1 | . 1 . . . . . . Heat Transferred 1421 | 50 1260 . 111 . . . . Parts Sabotaged . | . . . . . . . . Parts Stolen . | . . . . . . . . Parts Stripped . | . . . . . . . . Power Chain Reactions . | . . . . . . . . Alert | -11 -10 -10 -9 -9 -9 -8 -8 ------- Run | Yrd Mat Min Mat Min Exi Min Mat Peak Influence 370 | 5 147 70 349 367 . 234 370 Initial 135 | . 3 . . 135 . . . Average 79 | 2 66 10 152 185 . 84 160 Maximum Alert Level 1 | . . . 1 1 . 1 1 Low Security (%) 86 | 100 100 100 67 67 . 73 37 Level 1 13 | . . . 32 32 . 26 62 Level 2 . | . . . . . . . . Level 3 . | . . . . . . . . Level 4 . | . . . . . . . . Level 5 . | . . . . . . . . High Security . | . . . . . . . . Max Security . | . . . . . . . . Squads Dispatched 6 | . 3 1 2 . . . . Investigation 2 | . 1 1 . . . . . Extermination . | . . . . . . . . Reinforcement 4 | . 2 . 2 . . . . Assault . | . . . . . . . . Garrison . | . . . . . . . . Intercept . | . . . . . . . . Searches Triggered . | . . . . . . . . Construction Impeded 2 | . . . 2 . . . . Haulers Reinforced . | . . . . . . . . Active Scanning Responses . | . . . . . . . . Cargo Convoy Interrupts . | . . . . . . . . Stealth | -11 -10 -10 -9 -9 -9 -8 -8 --------- Run | Yrd Mat Min Mat Min Exi Min Mat Distress Signals 5 | . 2 . 2 . . . 1 Communications Jammed . | . . . . . . . . Distress Signals . | . . . . . . . . Times Spotted 85 | . 29 2 19 14 . 8 13 Peak Tracking Total 7 | . 4 1 7 4 . 4 7 Tactical Retreats 2 | . 1 . . . . . 1 Traps | -11 -10 -10 -9 -9 -9 -8 -8 ------- Run | Yrd Mat Min Mat Min Exi Min Mat Traps Triggered 2 | . 2 . . . . . . Indirectly . | . . . . . . . . Trap Hack Attempts . | . . . . . . . . Triggered . | . . . . . . . . Disarmed . | . . . . . . . . Reprogrammed . | . . . . . . . . Reused . | . . . . . . . . Traps Extracted . | . . . . . . . . Installed . | . . . . . . . . Triggered . | . . . . . . . . Machines | -11 -10 -10 -9 -9 -9 -8 -8 ---------- Run | Yrd Mat Min Mat Min Exi Min Mat Machines Disabled 1 | . . . 1 . . . . Max in Single Turn 1 | . . . 1 . . . . Machines Repaired . | . . . . . . . . Machines Dismantled . | . . . . . . . . Machines Sabotaged . | . . . . . . . . Overloaded Fab Kills . | . . . . . . . . Hacking | -11 -10 -10 -9 -9 -9 -8 -8 --------- Run | Yrd Mat Min Mat Min Exi Min Mat Machines Accessed 10 | . 3 1 3 1 . . 2 Terminals 5 | . 2 . 2 . . . 1 Fabricators . | . . . . . . . . Repair Stations 1 | . 1 . . . . . . Recycling Units 2 | . . . 1 . . . 1 Scanalyzers . | . . . . . . . . Garrison Access . | . . . . . . . . Total Hacks 28 | . 14 1 6 1 . . 6 Successful 14 | . 8 1 2 1 . . 2 Failed 14 | . 6 . 4 . . . 4 Catastrophic 3 | . 2 . . . . . 1 Database Lockouts . | . . . . . . . . Manual 19 | . 9 . 5 . 1 . 4 Terminals 18 | . 9 . 5 . . . 4 Fabricators . | . . . . . . . . Repair Stations 5 | . 5 . . . . . . Recycling Units 3 | . . . 1 . . . 2 Scanalyzers . | . . . . . . . . Garrison Access . | . . . . . . . . Terminal Hacks 4 | . 2 1 . 1 . . . Open Door 2 | . . 1 . 1 . . . Branch Access Points 1 | . 1 . . . . . . Terminal Index 1 | . 1 . . . . . . Fabricator Hacks . | . . . . . . . . Repair Station Hacks 4 | . 4 . . . . . . Scan Component 2 | . 2 . . . . . . Repair 2 | . 2 . . . . . . Recycling Unit Hacks 2 | . . . 1 . . . 1 Retrieve Components 2 | . . . 1 . . . 1 Scanalyzer . | . . . . . . . . Garrison Access Hacks . | . . . . . . . . Unauthorized Hacks 4 | . 2 . 1 . . . 1 Terminals 4 | . 2 . 1 . . . 1 Botnet 4 | . 2 . 1 . . . 1 Fabricators . | . . . . . . . . Repair Stations . | . . . . . . . . Recycling Units . | . . . . . . . . Scanalyzers . | . . . . . . . . Garrison Access . | . . . . . . . . Data Cores Recovered 1 | . . . 1 . . . . Used . | . . . . . . . . Hacking Detections 8 | . 3 . 3 . . . 2 Full Trace Events . | . . . . . . . . Feedback Events . | . . . . . . . . Feedback Blocked . | . . . . . . . . Robot Schematics Acquired . | . . . . . . . . Robots Built . | . . . . . . . . Authchips . | . . . . . . . . Time . | . . . . . . . . Total Robot Build Rating . | . . . . . . . . Part Schematics Acquired . | . . . . . . . . Parts Built . | . . . . . . . . Authchips . | . . . . . . . . Time . | . . . . . . . . Total Part Build Rating . | . . . . . . . . Parts Repaired 2 | . 2 . . . . . . Time 52 | . 52 . . . . . . Parts Recycled . | . . . . . . . . Recycled Matter . | . . . . . . . . Retrieved Matter . | . . . . . . . . Retrieved Components 4 | . . . 2 . . . 2 Parts Scanalyzed . | . . . . . . . . Part Schematics Acquired . | . . . . . . . . Parts Damaged . | . . . . . . . . Bothacking | -11 -10 -10 -9 -9 -9 -8 -8 ------------ Run | Yrd Mat Min Mat Min Exi Min Mat Used RIF Installer . | . . . . . . . . Robots Hacked . | . . . . . . . . Non-combat . | . . . . . . . . Combat . | . . . . . . . . Robot Hacks Applied . | . . . . . . . . Relay Couplers Released . | . . . . . . . . Fabnet Peak Effective % . | . . . . . . . . Robots Rewired . | . . . . . . . . Allies Hacked . | . . . . . . . . Hacks Repelled . | . . . . . . . . Allies | -11 -10 -10 -9 -9 -9 -8 -8 -------- Run | Yrd Mat Min Mat Min Exi Min Mat Total Allies 3 | . . . . 3 . . . Largest Group 3 | . . . . 3 2 2 . Highest-Rated Group 40 | . . . . 40 32 32 . Highest-Rated Ally 16 | . . . . 16 16 16 . Total Orders . | . . . . . . . . Ally Attacks 27 | . . . . 10 . 17 . Total Damage 294 | . . . . 97 . 197 . Kills 9 | . . . . 5 . 4 . Allies Corrupted . | . . . . . . . . Allies Melted . | . . . . . . . . Intel | -11 -10 -10 -9 -9 -9 -8 -8 ------- Run | Yrd Mat Min Mat Min Exi Min Mat Robot Analysis Total . | . . . . . . . . Derelict Logs Recovered 1 | . . . . 1 . . . Drone Launches . | . . . . . . . . Drone Recoveries . | . . . . . . . . Exploration | -11 -10 -10 -9 -9 -9 -8 -8 ------------- Run | Yrd Mat Min Mat Min Exi Min Mat Turns Passed 8559 | 131 1601 2934 715 1534 417 1049 178 Spaces Moved 3272 | 71 685 641 286 769 218 531 71 Core 5 | 3 . . . . . . 2 Treads 677 | 68 609 . . . . . . Legs 2590 | . 76 641 286 769 218 531 69 Wheels . | . . . . . . . . Hover . | . . . . . . . . Flight . | . . . . . . . . Fastest Speed 50 | 50 160 260 190 190 190 190 50 Average Speed 202 | 155 179 260 206 190 190 190 188 Slowest Speed 260 | 160 260 260 260 190 190 190 260 Overloaded Moves . | . . . . . . . . Propulsion Burnouts . | . . . . . . . . Robots Hopped . | . . . . . . . . Cave-ins Triggered . | . . . . . . . . Exploration Rate (%) 54 | 5 75 92 29 100 41 82 12 Regions Visited 7 Branch Regions 4 Pre-discovered Areas 1 | . . . . 1 . . . Known Exits Taken 1 | . 1 . . . . . . Unknown Exits Taken 6 | 1 . 1 1 1 1 1 . Scrap Searched 4 | . . 1 . 2 . 1 . Spaces Dug 18 | . . 1 . . . . 17 Terrain Destroyed 413 | . . 38 126 63 . 54 132 Melee 1 | . . 1 . . . . . Projectile 1 | . . . 1 . . . . AOE 411 | . . 37 125 63 . 54 132 Terrain Rammed . | . . . . . . . . Walls Destroyed . | . . . . . . . . Machines Disabled . | . . . . . . . . Actions | -11 -10 -10 -9 -9 -9 -8 -8 --------- Run | Yrd Mat Min Mat Min Exi Min Mat Total 5012 | 85 955 1899 359 837 221 563 93 Wait 1499 | . 183 1238 7 43 . 28 . Move 3265 | 70 684 640 285 768 217 530 71 Hop . | . . . . . . . . Pick Up 46 | 5 15 10 8 6 . . 2 Fast Attach 20 | 7 5 . 4 . 2 . 2 Attach 6 | . 1 . 1 . . . 4 Detach . | . . . . . . . . Swap 16 | . 3 3 4 5 . 1 . Drop 35 | 1 11 1 9 8 2 . 3 Fire 105 | 2 52 4 25 7 . 4 11 Melee 18 | . . 3 15 . . . . Ram . | . . . . . . . . Kick 1 | . . . 1 . . . . Crush 1 | . 1 . . . . . . Escape Stasis . | . . . . . . . . Rewire . | . . . . . . . . Trap . | . . . . . . . . Miscellaneous . | . . . . . . . . Route ------- -11/Scrapyard -10/Materials (discovered 4 exits: *Mat / *Min x2 / [*Sub]) -10/Mines (discovered 2 exits: *Mat / [*Sub]) -9/Materials -9/Mines (discovered 3 exits: *Mat x2 / *Exi) -9/Exiles -8/Mines -8/Materials History --------- Turn | Location | Event 2 | -11/Scrapyard | Met Revision 17 14 | -11/Scrapyard | Discovered new exit (range 16) 132 | -11/Scrapyard | Entered Materials 156 | -10/Materials | Identified exit to Mines 217 | -10/Materials | Discovered new exit (range 8) 318 | -10/Materials | Build established: Mutant 1571 | -10/Materials | Repaired Assault Rifle 1598 | -10/Materials | Repaired Ion Engine 1720 | -10/Materials | Discovered new exit (range 10) 1733 | -10/Materials | Entered Mines 1786 | -10/Mines | Assembled infested the area 1813 | -10/Mines | Received a Rocket Launcher from a helpful Derelict 3159 | -10/Mines | Discovered new exit (range 9) 3740 | -10/Mines | Discovered new exit (range 4) 4334 | -10/Mines | Met a Derelict shopkeep closing up shop 4667 | -10/Mines | Entered Materials 4667 | -9/Materials | Evolved 2 slots: Propulsion x1, Utility x1 5136 | -9/Materials | Discovered new exit (range 13) 5176 | -9/Materials | Destroyed 8 combat bots 5382 | -9/Materials | Entered Mines 5574 | -9/Mines | Joined a pair of Derelicts in attacking an 0b10 outpost 5694 | -9/Mines | Found the Drone Emporium 5813 | -9/Mines | Assisted by bots powering up and referring to "LRC-V3" 5825 | -9/Mines | Discovered new exit (range 7) 5886 | -9/Mines | Learned location of Storage (-8) 5911 | -9/Mines | Build established: Scavenger-Mutant 6038 | -9/Mines | Deemed a non-threat by the Exiles lab entrance 6040 | -9/Mines | Discovered new exit (range 5) 6272 | -9/Mines | Found a hidden stash of uninstalled traps 6606 | -9/Mines | Discovered new exit (range 15) 6916 | -9/Mines | Entered Exiles 6916 | -9/Exiles | Accompanied by 2 allies 6964 | -9/Exiles | Met 8R-AWN 7000 | -9/Exiles | Met EX-HEX 7053 | -9/Exiles | Met EX-BIN 7076 | -9/Exiles | Aligned with FarCom system 7078 | -9/Exiles | Given EX-Vault access code 7127 | -9/Exiles | Opened EX-Vault 7137 | -9/Exiles | Found Prototype Device 7137 | -9/Exiles | Identified Supersonic Drone Bay 7145 | -9/Exiles | Found Prototype Device 7145 | -9/Exiles | Identified Cloak of Protection 7190 | -9/Exiles | Warned to stay clear of 0b10 Research branches 7310 | -9/Exiles | Discovered new exit (range 14) 7333 | -9/Exiles | Left Exiles lab with Cloak of Protection 7333 | -9/Exiles | Entered Mines 7333 | -8/Mines | Accompanied by 2 allies 8371 | -8/Mines | Discovered new exit (range 3) 8382 | -8/Mines | Entered Materials 8382 | -8/Materials | Evolved 2 slots: Propulsion x2 8469 | -8/Materials | Destroyed 7 combat bots 8558 | -8/Materials | Released all parts (11) 8560 | -8/Materials | Self-destructed Last Messages --------------- 08503_ R-06 Scavenger inserts Lgt. Assault Rifle into recycling unit. 08506_ R-06 Scavenger inserts Imp. Ion Engine into recycling unit. 08509_ R-06 Scavenger inserts Heat Sink into recycling unit. 08532_ Rocket Launcher destroyed. 08540_ Y-45 Defender destroyed. 08543_ The unstable cave ceiling collapses. 08543_ Imp. Aluminum Leg destroyed. 08546_ Y-45 Defender destroyed. 08548_ U-05 Engineer lays Concrete. 08558_ Released Lgt. Armor Plating. 08558_ Released Flight Unit. 08558_ Released Lgt. Ion Engine. 08558_ Released Carbon-fiber Leg. 08558_ Released Hacking Suite. 08558_ Released Hcp. Storage Unit. 08558_ Released Aluminum Leg. 08558_ Released Rocket Launcher. 08558_ Released Flight Unit. 08558_ Released Rocket Launcher. 08559_ U-05 Engineer lays Concrete. Map ----- +----------------------------------------------------+ | ???????????????????????????????????????????????? | | ???????????????????????????????????????????????? | | ???????????????????????????????????????????????? | | ???????????????????????????????????????????????? | | ???????????????????????????????????????????????? | | ???????????????????????????????????????????????? | | ????????????????? ?????????????????????????? | | ??????????????? ?????????????????????????? | | ??????????????? ????????????????????????? | | ??????????????? =%! ?? ?#???????????????????? | | ???????????????? [ ? #???????????????????? | | ???????????????? # # #???????????????????? | | ???????????????? # #???????????????????? | | ????????????????# # #???????????????????? | | ????????????????# #???????????????????? | | ???????????????## g ????????????????????? | | ???????????????? ?????????????????????? | | ??????????????###w ######?????????????????? | | ?????????????## ^l # #?????????????????? | | ??????????#### # #?????????????????? | | ????? # !/] #?????????????????? | | ???? % g !#!=* #?????????????????? | | ???? = =u=*! #?????????????????? | | ???? #!=]= #?????????????????? | | ????? ## #!=! +?????????????????? | | ?????????# #]!@ #?????????????????? | | ?????????# #* #?????????????????? | | ?????????# #############?????#????????? | | ?????????# # ] #?? #???? #????????? | | ?????????# # #? ##?? #????????? | | ?????????# # /! #? ### #????????? | | ?????????# # /! # ##???????? | | ?????????# #? /! # #???????? | | ?????????# "" #? # # ##???????? | | ?????????# Y" ###+##### + ## #???????? | | ?????????# "" #???????? | | ?????????# / % #???????? | | ?????????# #???????? | | ?????????# ########## ##### ## #???????? | | ?????????# #?????# ### ## ##???????? | | ?????????# #?????# # #????????????? | | ?????##### #?????#"" # """ #????????????? | | ?????# #?????#"T # """ +????????????? | | ?????# / #?????#"" # """ #????????????? | | ?????# #?????# # ]#????????????? | | ????## ###?????#############??#????????????? | | ????# #???????????????????????????????????? | | ????#// /!!#???????????????????????????????????? | | ????#////!!#???????????????????????????????????? | | ????########???????????????????????????????????? | +----------------------------------------------------+ Best States ------------- Heat Dissipation 35 Energy Generation 12 Energy Capacity 265 Matter Stores 300 Matter Capacity 300 Sight Range 16 Terrain Scan Density 10 Armor Coverage 150 Evasion (%) 50 Recoil Reduction 2 Offensive Hacking 10 Item Schematics ----------------- None Robot Schematics ------------------ None Fabricated ------------ Nothing Alien Tech Used ----------------- None Achievements -------------- None Challenges ------------ None Game ------ Seed MagneticBoltInitializer Manual? 0 Play Time 00:59:01 Cumulative 32.8 hours Start 2024.09.03 @ 06:08:16 End 2024.09.03 @ 09:30:10 Sessions 1 Manual Loads 0 Difficulty Rogue Special Mode None Game No. 48 Rogue 48 Adventurer 0 Explorer 0 Win Type - Total 0 Types 0/0/0/0/0/0/0/0/0 Lore% 14 Gallery% 32 Achievement% 30 Wizard Run 0 Options --------- Layout 0 ASCII 0 Keyboard 0 Movement Numpad Keybinds 0 Fullscreen 1 Font 18/Cog Map View 76x50 Zoom Use 0% Tactical HUD 1 Map Filters NONE Filters NONE Steam 1 RUN: 9969ebae-abb7-4bd0-a53a-1b7f36bcd455